bitfinex-derivatives/quotes_BNBF0:USTF0_20250413
["timestamp","ask_amount","ask_price","bid_price","bid_amount"]
[1744576078369,2.14830038,584.49,584.18,1.785]
[1744576078572,2.14830038,584.48,584.18,0.821]
[1744576078772,2.14830038,584.47,584.18,0.821]
[1744576078974,2.14830038,584.46,584.18,0.821]
[1744576079172,2.14830038,584.45,584.18,0.821]
[1744576079373,2.14830038,584.44,584.18,0.821]
[1744576079572,2.14830038,584.43,584.18,0.821]
[1744576079776,2.14830038,584.42,584.18,0.821]
[1744576079976,2.14830038,584.41,584.18,0.821]
[1744576080179,2.14830038,584.4,584.18,0.821]
[1744576080378,2.14830038,584.39,584.18,0.821]
[1744576080678,2.14830038,584.38,584.18,0.821]
[1744576080877,2.14830038,584.37,584.18,0.821]
[1744576081074,2.14825855,584.36,584.18,0.821]
[1744576081272,0.215,584.91,584.18,0.821]
[1744576081273,2.14826309,584.35,584.18,0.821]
[1744576081478,2.14826309,584.34,584.18,0.821]
[1744576081679,2.14826309,584.33,584.18,0.821]
[1744576081879,1.50442248,584.32,584.0,2.012]
[1744576082079,1.50442248,584.31,584.0,2.012]
[1744576082282,1.50442248,584.3,584.0,2.012]
[1744576082481,1.50462661,584.29,584.0,2.012]
[1744576082676,1.50462661,584.28,584.0,2.012]
[1744576082876,0.215,584.91,584.0,2.012]
[1744576083084,2.45957906,584.9,584.0,2.012]
[1744576083277,2.45957906,584.89,584.0,2.012]
[1744576083477,2.45957906,584.88,584.0,2.012]
[1744576083782,2.45957906,584.87,584.0,2.012]
[1744576083982,2.45957906,584.86,584.0,2.012]
[1744576084282,2.45957426,584.85,584.0,2.012]
[1744576084482,2.148552,584.84,584.0,2.012]
[1744576084679,2.45958592,584.83,584.0,2.012]
[1744576084983,2.45958592,584.82,584.0,2.012]
[1744576085183,2.45958592,584.81,584.0,2.012]
[1744576085483,2.45958592,584.8,584.0,2.012]
[1744576085684,2.148552,584.79,584.01,1.007]
[1744576085884,2.45954527,584.78,584.01,1.007]
[1744576086087,2.148552,584.77,584.01,1.007]
[1744576086386,2.148552,584.76,584.01,1.007]
[1744576086585,2.148552,584.75,584.01,1.007]
[1744576086785,2.148552,584.74,584.01,1.007]
[1744576086985,0.215,584.91,584.01,1.007]
[1744576086986,2.148552,584.73,584.01,1.007]
[1744576087183,2.148552,584.72,584.01,1.007]
[1744576087387,2.148552,584.71,584.01,1.007]
[1744576087683,2.148552,584.7,584.01,1.007]
[1744576087883,2.14854591,584.69,584.01,1.007]
[1744576088086,2.14854591,584.68,584.01,1.007]
[1744576088382,2.14854591,584.67,584.01,1.007]
[1744576088586,0.215,584.91,584.01,1.007]
[1744576088587,2.14854591,584.66,584.01,1.007]
[1744576088786,2.14854591,584.65,584.01,1.007]
[1744576088988,2.14854591,584.64,584.01,1.007]
[1744576089189,2.14854591,584.63,584.01,1.007]
[1744576089390,2.14854591,584.62,584.01,1.007]
[1744576089587,2.14854591,584.61,584.01,1.007]
[1744576089784,2.14854591,584.6,584.01,1.007]
[1744576089988,2.14854591,584.59,584.01,1.007]
[1744576090188,2.14854591,584.58,584.01,1.007]
[1744576090389,2.14854591,584.57,584.01,1.007]
[1744576090587,2.14854591,584.56,584.01,1.007]
[1744576090890,2.14854591,584.55,584.01,1.007]
[1744576091187,2.14854591,584.54,584.01,1.007]
[1744576091390,2.14854591,584.53,584.01,1.007]
[1744576091686,2.14854591,584.52,584.01,1.007]
[1744576091891,1.50463246,584.51,584.01,1.007]
[1744576092093,1.50463246,584.5,584.01,1.007]
[1744576092390,1.50463246,584.49,584.01,1.007]
[1744576092590,1.50463246,584.48,584.01,1.007]
[1744576092785,1.50463246,584.47,584.01,1.007]
[1744576092989,0.215,584.91,584.01,1.007]
[1744576093190,2.14940031,584.9,584.01,1.007]
[1744576093391,2.14940031,584.89,584.01,1.007]
[1744576093588,2.14940031,584.88,584.01,1.007]
[1744576093788,2.14940031,584.87,584.01,1.007]
[1744576094089,2.14940031,584.86,584.01,1.007]
[1744576094288,2.14940031,584.85,584.01,1.007]
[1744576094484,2.14940031,584.84,584.01,1.007]
[1744576094685,2.14940031,584.83,584.01,1.007]
[1744576094889,2.14940031,584.82,584.01,1.007]
[1744576095090,2.14940031,584.81,584.01,1.007]
[1744576095389,2.14940031,584.8,584.02,0.965]
[1744576095589,2.14940031,584.79,584.02,0.965]
[1744576095789,2.14940031,584.78,584.02,0.965]
[1744576095986,2.14940031,584.77,584.02,0.965]
[1744576096186,2.14940031,584.76,584.02,0.965]
[1744576096390,2.14940031,584.75,584.02,0.965]
[1744576096690,2.14940031,584.74,584.02,0.965]
[1744576096992,2.14940031,584.73,584.02,0.965]
[1744576097187,2.14940031,584.72,584.02,0.965]
[1744576097391,2.14940031,584.71,584.02,0.965]
[1744576097588,2.36440031,584.7,584.02,0.965]
[1744576097788,2.14940031,584.69,584.02,0.965]
[1744576097986,2.14940031,584.68,584.02,0.965]
[1744576098185,2.14940031,584.67,584.02,0.965]
[1744576098390,2.14940031,584.66,584.02,0.965]
[1744576098590,2.14940031,584.65,584.02,0.965]
[1744576098786,2.14940031,584.64,584.02,0.965]
[1744576098990,2.14940031,584.63,584.02,0.965]
[1744576099192,2.14940031,584.62,584.02,0.965]
[1744576099392,2.14940031,584.61,584.03,0.31441365]
[1744576099691,2.14940031,584.6,584.03,0.31441365]
[1744576099886,2.14940031,584.59,584.03,0.31441365]
[1744576100086,2.14940031,584.58,584.03,0.31441365]
[1744576100290,2.14940031,584.57,584.03,0.31441365]
[1744576100491,2.14940031,584.56,584.03,0.31441365]
[1744576100688,2.14940031,584.55,584.03,0.31441365]
[1744576100887,2.14940031,584.54,584.03,0.31441365]
[1744576101090,2.14940031,584.53,584.02,0.965]
[1744576101389,2.14940031,584.52,584.02,0.965]
[1744576101590,2.14940031,584.51,584.02,0.965]
[1744576101789,2.14940031,584.5,584.02,0.965]
[1744576101988,2.14940031,584.49,584.02,0.965]
[1744576102187,2.14940031,584.48,584.02,0.965]
[1744576102390,2.14940031,584.47,584.02,0.965]
[1744576102595,2.14940031,584.46,584.02,0.965]
[1744576102893,1.5052402,584.45,584.03,0.31441308]
[1744576103093,1.5052402,584.44,584.03,0.31441308]
[1744576103295,1.5052402,584.43,584.03,0.31441308]
[1744576103494,0.215,584.7,584.03,0.31441308]
[1744576103695,2.15306759,584.69,584.03,0.31441308]
[1744576103894,2.15306759,584.68,584.03,0.31441308]
[1744576104090,2.15306759,584.67,584.03,0.31441308]
[1744576104294,2.15306759,584.66,584.03,0.31441308]
[1744576104590,2.15306759,584.65,584.03,0.31441308]
[1744576104795,2.15306759,584.64,584.03,0.31441308]
[1744576104994,2.15306759,584.63,584.04,0.31436962]
[1744576105191,2.15306759,584.62,584.03,0.31436962]
[1744576105390,2.15306759,584.61,584.04,0.31436962]
[1744576105591,2.15306759,584.6,584.05,0.31436962]
[1744576105890,2.15306759,584.59,584.06,0.31436962]
[1744576106097,2.15306759,584.58,584.03,0.31436962]
[1744576106392,2.15306759,584.57,584.03,0.31436962]
[1744576106592,2.15306759,584.56,584.03,0.31436962]
[1744576106792,2.15306759,584.55,584.03,0.31436962]
[1744576106996,1.50842202,584.54,584.04,0.34244229]
[1744576107197,1.50842202,584.53,584.05,0.31436962]
[1744576107390,0.215,584.7,584.05,0.31436962]
[1744576107590,2.15402271,584.69,584.05,0.31436962]
[1744576107791,2.15402271,584.68,584.05,0.31436962]
[1744576107992,2.15402271,584.67,584.04,0.34244229]
[1744576108298,2.15402271,584.66,584.05,0.31433652]
[1744576108500,2.15402271,584.65,584.06,0.34243057]
[1744576108697,2.15386771,584.64,584.07,0.31433652]
[1744576108899,2.15386771,584.63,584.08,0.34241884]
[1744576109196,2.15386771,584.62,584.09,0.31433652]
[1744576109397,2.15386771,584.61,584.1,0.34240712]
[1744576109597,2.15386771,584.6,584.1,0.34240712]
[1744576109797,2.15386771,584.59,584.11,0.3143396]
[1744576110097,2.15386771,584.58,584.11,0.3143396]
[1744576110392,2.15362074,584.57,584.12,0.34239539]
[1744576110597,2.15321827,584.56,584.13,0.3143396]
[1744576110793,2.15321827,584.55,584.13,0.3143396]
[1744576110999,1.50793199,584.54,584.13,0.3143396]
[1744576111198,1.50793199,584.53,584.13,0.94]
[1744576111397,1.50793199,584.52,584.13,0.94]
[1744576111698,2.15319555,584.51,584.13,0.94]
[1744576111894,2.15319555,584.5,584.13,0.94]
[1744576112097,2.15319555,584.49,584.13,0.94]
[1744576112297,2.15317206,584.48,584.13,0.94]
[1744576112496,2.15317206,584.47,584.13,0.94]
[1744576112697,2.15317206,584.46,584.13,0.94]
[1744576112894,2.15319092,584.45,584.13,0.94]
[1744576113101,2.15319092,584.44,584.13,0.94]
[1744576113398,2.15319092,584.43,584.13,0.94]
[1744576113598,2.15319092,584.42,584.13,0.94]
[1744576113798,1.50788466,584.41,584.13,0.94]
[1744576113994,1.50788466,584.4,584.13,0.94]
[1744576114200,0.215,584.7,584.13,0.94]
[1744576114403,2.1532874,584.69,584.13,0.94]
[1744576114601,2.1532874,584.68,584.13,0.94]
[1744576114796,2.1532874,584.67,584.13,0.94]
[1744576114997,2.1532874,584.66,584.13,0.94]
[1744576115197,2.1532874,584.65,584.13,0.94]
[1744576115400,2.1532874,584.64,584.13,0.94]
[1744576115603,2.1532874,584.63,584.13,0.94]
[1744576115897,2.1532874,584.62,584.13,0.94]
[1744576116097,2.1532874,584.61,584.13,0.94]
[1744576116304,0.215,584.7,584.13,0.94]
[1744576116305,2.1532874,584.6,584.13,0.94]
[1744576116603,2.1532874,584.59,584.13,0.94]
[1744576116803,2.1532874,584.58,584.13,0.94]
[1744576117000,2.1532874,584.57,584.13,0.94]
[1744576117201,2.1532874,584.56,584.13,0.94]
[1744576117401,2.1532874,584.55,584.13,0.94]
[1744576117602,2.1532874,584.54,584.14,0.788]
[1744576117902,2.1532874,584.53,584.14,0.788]
[1744576118203,2.1532874,584.52,584.14,0.788]
[1744576118403,2.1532874,584.51,584.14,0.788]
[1744576118597,2.1532874,584.5,584.14,0.788]
[1744576118797,2.1532874,584.49,584.14,0.788]
[1744576118997,2.1532874,584.48,584.14,0.788]
[1744576119198,2.15388428,584.47,584.14,0.788]
[1744576119400,2.15388428,584.46,584.14,0.788]
[1744576119599,1.50838288,584.45,584.14,0.788]
[1744576119798,1.50838288,584.44,584.14,0.788]
[1744576120002,1.50838288,584.43,584.14,0.788]
[1744576120302,0.215,584.7,584.14,0.788]
[1744576120499,2.15411005,584.69,584.14,0.788]
[1744576120700,2.15411005,584.68,584.14,0.788]
[1744576120899,2.15411005,584.67,584.14,0.788]
[1744576121101,2.15411005,584.66,584.15,0.729]
[1744576121306,2.15411005,584.65,584.15,0.729]
[1744576121503,2.15411005,584.64,584.15,0.729]
[1744576121699,2.15411005,584.63,584.15,0.729]
[1744576121900,2.15411005,584.62,584.15,0.729]
[1744576122202,2.15411005,584.61,584.15,0.729]
[1744576122500,2.15411005,584.6,584.15,0.729]
[1744576122704,2.15470744,584.59,584.15,0.729]
[1744576122901,2.15470744,584.58,584.15,0.729]
[1744576123107,2.15470744,584.57,584.15,0.729]
[1744576123406,2.15470744,584.56,584.15,0.729]
[1744576123608,2.15470744,584.55,584.15,0.729]
[1744576123809,2.15470744,584.54,584.15,0.729]
[1744576124007,2.15470744,584.53,584.15,0.729]
[1744576124203,2.15470744,584.52,584.15,0.729]
[1744576124506,2.15470744,584.51,584.15,0.729]
[1744576124704,0.215,584.7,584.15,0.729]
[1744576124705,2.15470744,584.5,584.15,0.729]
[1744576125007,2.15470744,584.49,584.15,0.729]
[1744576125201,2.15470744,584.48,584.15,0.729]
[1744576125406,2.15470744,584.47,584.15,0.729]
[1744576125604,2.15470744,584.46,584.15,0.729]
[1744576125808,2.15470744,584.45,584.15,0.729]
[1744576126108,2.15470744,584.44,584.15,0.729]
[1744576126310,2.15470744,584.43,584.15,0.729]
[1744576126610,2.15470744,584.42,584.15,0.729]
[1744576126812,2.15470744,584.41,584.15,0.729]
[1744576127010,2.15470744,584.4,584.15,0.729]
[1744576127312,2.15470744,584.39,584.15,0.729]
[1744576127610,2.15470744,584.38,584.15,0.729]
[1744576127809,2.15470744,584.37,584.15,0.729]
[1744576128006,1.30120595,585.67,584.15,0.729]
[1744576128007,2.15470744,584.36,584.15,0.729]
[1744576128209,2.15470744,584.35,584.15,0.729]
[1744576128410,1.5089574,584.34,584.15,0.729]
[1744576128610,1.5089574,584.33,584.15,0.729]
[1744576128807,0.29784193,585.35,584.15,0.729]
[1744576129110,0.34168759,585.33,584.15,1.546]
[1744576129311,2.46666125,585.32,584.15,1.546]
[1744576129514,0.3417051,585.3,584.15,1.546]
[1744576129709,2.46666125,585.29,584.15,1.546]
[1744576130013,2.49744281,585.28,584.15,1.546]
[1744576130213,2.80838861,585.27,584.15,1.546]
[1744576130408,2.80839445,585.26,584.15,1.546]
[1744576130610,2.80840029,585.25,584.15,1.546]
[1744576130913,2.80840613,585.24,584.15,1.546]
[1744576131113,2.80841197,585.23,584.15,1.546]
[1744576131308,2.8084178,585.22,584.15,1.546]
[1744576131513,2.80842364,585.21,584.15,1.546]
[1744576131713,2.80842948,585.2,584.15,1.546]
[1744576131909,2.80843532,585.19,584.15,1.546]
[1744576132213,2.80844117,585.18,584.15,1.546]
[1744576132414,2.80844701,585.17,584.15,1.546]
[1744576132614,2.80845285,585.16,584.15,1.546]
[1744576132815,2.80845869,585.15,584.15,1.546]
[1744576133017,2.80846453,585.14,584.15,1.546]
[1744576133214,2.80847037,585.13,584.15,1.546]
[1744576133413,2.80847621,585.12,584.15,1.546]
[1744576133618,2.80848205,585.11,584.15,1.546]
[1744576133814,2.8084879,585.1,584.15,1.546]
[1744576134018,2.46666599,585.09,584.15,1.546]
[1744576134214,2.46666599,585.08,584.15,1.546]
[1744576134414,2.15572603,585.07,584.15,1.546]
[1744576134618,2.46666599,585.06,584.15,1.546]
[1744576134817,2.46666599,585.05,584.15,1.546]
[1744576135021,2.46683995,585.04,584.15,1.546]
[1744576135321,2.46683995,585.03,584.15,1.546]
[1744576135514,2.46683995,585.02,584.15,1.546]
[1744576135716,2.46683995,585.01,584.15,1.546]
[1744576135917,0.34182191,585.1,584.15,1.546]
[1744576135918,2.46683995,585.0,584.15,1.546]
[1744576136117,2.46683995,584.99,584.15,1.546]
[1744576136318,2.46683995,584.98,584.15,1.546]
[1744576136520,2.46683995,584.97,584.15,1.546]
[1744576136720,2.46683995,584.96,584.15,1.546]
[1744576136918,2.46683995,584.95,584.15,1.546]
[1744576137121,2.46683995,584.94,584.15,1.546]
[1744576137319,2.46683995,584.93,584.15,1.546]
[1744576137517,2.46683995,584.92,584.15,1.546]
[1744576137723,2.46683995,584.91,584.15,1.546]
[1744576138023,2.46683995,584.9,584.15,1.546]
[1744576138319,2.46683995,584.89,584.15,1.546]
[1744576138527,2.46699927,584.88,584.15,1.546]
[1744576138718,2.46699927,584.87,584.15,1.546]
[1744576138920,2.46699927,584.86,584.15,1.546]
[1744576139119,2.46699927,584.85,584.15,1.546]
[1744576139320,2.46699927,584.84,584.15,1.546]
[1744576139517,2.46699927,584.83,584.15,1.546]
[1744576139723,2.15601281,584.82,584.15,1.546]
[1744576139915,2.46702205,584.81,584.15,1.546]
[1744576140121,2.46702205,584.8,584.15,1.546]
[1744576140319,2.46770369,584.79,584.15,1.546]
[1744576140523,2.46770369,584.78,584.15,2.233]
[1744576140721,2.15669445,584.77,584.15,2.233]
[1744576140923,2.15669445,584.76,584.15,2.233]
[1744576141125,2.15669445,584.75,584.15,2.233]
[1744576141423,2.15669445,584.74,584.15,2.233]
[1744576141724,2.15669445,584.73,584.15,2.233]
[1744576141921,2.15669445,584.72,584.15,2.233]
[1744576142121,2.15669445,584.71,584.15,2.233]
[1744576142323,2.15669445,584.7,584.15,2.233]
[1744576142525,2.15669445,584.69,584.15,2.233]
[1744576142820,2.15669445,584.68,584.15,3.496]
[1744576143025,2.15669445,584.67,584.15,3.496]
[1744576143326,2.15669445,584.66,584.15,3.496]
[1744576143525,2.15669445,584.65,584.15,3.496]
[1744576143724,2.15669445,584.64,584.15,3.496]
[1744576143926,2.15669445,584.63,584.15,3.496]
[1744576144127,2.15669445,584.62,584.15,3.496]
[1744576144328,2.15669445,584.61,584.15,3.496]
[1744576144530,2.15669445,584.6,584.15,3.496]
[1744576144730,2.15669445,584.59,584.15,3.496]
[1744576144929,2.15669445,584.58,584.15,3.496]
[1744576145130,2.15669445,584.57,584.15,3.496]
[1744576145331,2.15669445,584.56,584.15,3.496]
[1744576145529,2.15669445,584.55,584.15,3.496]
[1744576145725,2.15669445,584.54,584.15,3.496]
[1744576145930,2.15669445,584.53,584.15,3.496]
[1744576146126,2.15669445,584.52,584.15,3.496]
[1744576146325,2.15669445,584.51,584.15,3.496]
[1744576146526,2.15669445,584.5,584.15,3.496]
[1744576146724,2.15669445,584.49,584.15,3.496]
[1744576146930,2.15669445,584.48,584.15,3.496]
[1744576147229,2.15669445,584.47,584.15,3.496]
[1744576147431,2.15669445,584.46,584.15,3.496]
[1744576147630,2.15669445,584.45,584.15,3.496]
[1744576147827,2.15669445,584.44,584.15,3.496]
[1744576148131,2.15669445,584.43,584.15,3.496]
[1744576148431,2.15669445,584.42,584.15,3.496]
[1744576148632,2.15669445,584.41,584.15,3.496]
[1744576148832,2.15669445,584.4,584.15,3.496]
[1744576149032,2.15669445,584.39,584.15,3.496]
[1744576149333,2.15669445,584.38,584.15,2.679]
[1744576149533,2.15669445,584.37,584.15,2.679]
[1744576149735,2.15669445,584.36,584.15,2.679]
[1744576149930,2.15669445,584.35,584.15,2.679]
[1744576150134,2.15669445,584.34,584.15,2.679]
[1744576150334,2.15669445,584.33,584.15,2.679]
[1744576150534,2.15669445,584.32,584.15,2.679]
[1744576150734,2.15669445,584.31,584.15,2.679]
[1744576150935,2.15669445,584.3,584.15,2.679]
[1744576151129,2.15669445,584.29,584.15,2.679]
[1744576151332,2.15669445,584.28,584.15,2.679]
[1744576151530,2.15669445,584.27,584.15,2.679]
[1744576151734,2.15617912,584.26,584.15,2.679]
[1744576151933,2.15617912,584.25,584.15,2.679]
[1744576152133,2.15617912,584.24,584.15,2.679]
[1744576152438,2.15617912,584.23,584.15,2.679]
[1744576152633,2.15617912,584.22,584.15,2.679]
[1744576152839,2.15608809,584.21,584.15,2.679]
[1744576153040,2.15608809,584.2,584.15,2.679]
[1744576153235,1.51034715,584.19,584.15,2.679]
[1744576153436,1.51034715,584.18,584.15,2.679]
[1744576153633,0.34182191,585.1,584.15,2.679]
[1744576153838,2.46537478,585.09,584.15,2.679]
[1744576154036,0.34191541,584.94,584.15,2.679]
[1744576154337,2.46537478,584.93,584.15,2.679]
[1744576154532,2.80730188,584.92,584.15,2.679]
[1744576154732,2.80730772,584.91,584.15,2.679]
[1744576154937,2.80731357,584.9,584.15,2.679]
[1744576155135,2.80731941,584.89,584.15,2.679]
[1744576155432,2.46522834,584.88,584.15,2.679]
[1744576155637,2.46522834,584.87,584.15,2.679]
[1744576155834,2.46522834,584.86,584.15,2.679]
[1744576156034,2.46522834,584.85,584.15,2.679]
[1744576156236,2.46522834,584.84,584.15,2.679]
[1744576156440,2.46522834,584.83,584.15,2.679]
[1744576156636,2.46522834,584.82,584.15,2.679]
[1744576156833,2.15419542,584.81,584.15,2.679]
[1744576157039,2.465199,584.8,584.15,2.679]
[1744576157234,2.465199,584.79,584.15,2.679]
[1744576157440,2.465199,584.78,584.15,2.679]
[1744576157640,2.465199,584.77,584.15,2.679]
[1744576157840,2.465199,584.76,584.15,2.679]
[1744576158042,2.15419542,584.75,584.15,2.679]
[1744576158341,2.46519599,584.74,584.15,2.679]
[1744576158641,2.4651816,584.73,584.15,2.679]
[1744576158841,2.15419542,584.72,584.15,2.679]
[1744576159035,2.15419542,584.71,584.15,2.679]
[1744576159240,2.15419542,584.7,584.15,2.679]
[1744576159441,2.15419542,584.69,584.15,2.679]
[1744576159740,2.15419542,584.68,584.15,2.679]
[1744576159940,2.15419542,584.67,584.15,2.679]
[1744576160241,2.15419542,584.66,584.15,2.679]
[1744576160441,2.15419542,584.65,584.15,2.679]
[1744576160741,2.15419542,584.64,584.15,2.679]
[1744576160935,2.15419542,584.63,584.15,2.679]
[1744576161139,2.15419542,584.62,584.15,2.679]
[1744576161337,2.15419542,584.61,584.15,2.679]
[1744576161538,2.15419542,584.6,584.15,2.679]
[1744576161838,2.15419542,584.59,584.15,2.679]
[1744576162037,2.15419542,584.58,584.15,2.679]
[1744576162241,2.15419542,584.57,584.15,2.679]
[1744576162441,2.15419542,584.56,584.15,2.679]
[1744576162637,2.15419542,584.55,584.15,1.416]
[1744576162838,2.15419542,584.54,584.15,1.416]
[1744576163037,2.15419542,584.53,584.15,1.416]
[1744576163242,2.15419542,584.52,584.15,1.416]
[1744576163437,2.15419542,584.51,584.15,1.416]
[1744576163638,2.15419542,584.5,584.15,1.416]
[1744576163837,2.15419542,584.49,584.15,1.416]
[1744576164037,2.15419542,584.48,584.15,1.416]
[1744576164241,2.15419542,584.47,584.15,1.416]
[1744576164437,2.15419542,584.46,584.15,1.416]
[1744576164641,2.15419542,584.45,584.15,1.416]
[1744576164838,2.15419542,584.44,584.15,1.416]
[1744576165037,2.15419542,584.43,584.15,1.416]
[1744576165242,2.15419542,584.42,584.15,1.416]
[1744576165442,2.15419542,584.41,584.15,1.416]
[1744576165642,2.15419542,584.4,584.15,1.416]
[1744576165843,2.15419542,584.39,584.15,1.416]
[1744576166044,2.15419542,584.38,584.15,0.687]
[1744576166343,2.15419542,584.37,584.15,0.687]
[1744576166542,2.15419542,584.36,584.15,0.687]
[1744576166743,2.15419542,584.35,584.15,0.687]
[1744576166944,2.15419542,584.34,584.15,0.687]
[1744576167244,2.15419542,584.33,584.15,0.687]
[1744576167440,2.15419542,584.32,584.15,0.687]
[1744576167645,2.15419542,584.31,584.15,0.687]
[1744576167841,2.15419542,584.3,584.15,0.687]
[1744576168041,2.15419542,584.29,584.15,0.687]
[1744576168245,2.15419542,584.28,584.15,0.687]
[1744576168544,2.15419542,584.27,584.15,0.687]
[1744576168744,2.15419542,584.26,584.15,0.687]
[1744576168945,2.15419542,584.25,584.15,0.687]
[1744576169147,2.15419542,584.24,584.15,0.687]
[1744576169447,2.15569405,584.23,584.15,0.687]
[1744576169641,2.15569405,584.22,584.15,0.687]
[1744576169842,1.50963057,584.21,584.15,0.687]
[1744576170046,1.50963057,584.2,584.15,0.687]
[1744576170345,1.50963057,584.19,584.15,0.687]
[1744576170646,1.51005681,584.18,584.15,0.687]
[1744576170846,0.215,584.69,584.15,0.687]
[1744576171043,2.1563262,584.68,584.15,0.687]
[1744576171242,2.1563262,584.67,584.15,0.687]
[1744576171446,2.1563262,584.66,584.15,0.687]
[1744576171746,2.1563262,584.65,584.15,0.687]
[1744576171947,2.1563262,584.64,584.15,0.687]
[1744576172149,2.1563262,584.63,584.15,0.687]
[1744576172448,2.1563262,584.62,584.15,0.687]
[1744576172645,2.1563262,584.61,584.15,0.687]
[1744576172845,2.1563262,584.6,584.15,0.687]
[1744576173047,2.1563262,584.59,584.15,0.687]
[1744576173249,2.1563262,584.58,584.15,0.687]
[1744576173546,2.1563262,584.57,584.15,0.687]
[1744576173746,2.1563262,584.56,584.15,0.687]
[1744576174048,2.1563262,584.55,584.15,0.687]
[1744576174247,2.1563262,584.54,584.15,0.687]
[1744576174547,2.1563262,584.53,584.15,0.687]
[1744576174747,2.1563262,584.52,584.15,0.687]
[1744576174942,2.1563262,584.51,584.15,0.687]
[1744576175146,2.1563262,584.5,584.15,0.687]
[1744576175347,2.1563262,584.49,584.15,0.687]
[1744576175545,2.1563262,584.48,584.15,0.687]
[1744576175743,2.1563262,584.47,584.15,0.687]
[1744576175945,2.1563262,584.46,584.15,0.687]
[1744576176150,2.1563262,584.45,584.15,0.687]
[1744576176349,2.1563262,584.44,584.15,0.687]
[1744576176646,2.1563262,584.43,584.15,0.687]
[1744576176847,2.1563262,584.42,584.15,0.687]
[1744576177049,2.1563262,584.41,584.15,0.687]
[1744576177249,2.1563262,584.4,584.15,0.687]
[1744576177448,2.1563262,584.39,584.15,0.687]
[1744576177652,2.1563262,584.38,584.15,0.687]
[1744576177843,2.1563262,584.37,584.15,0.687]
[1744576178151,2.15655739,584.36,584.15,0.687]
[1744576178350,2.15655739,584.35,584.15,0.687]
[1744576178551,2.15655739,584.34,584.15,0.687]
[1744576178749,2.15655739,584.33,584.15,0.687]
[1744576178949,2.15655739,584.32,584.15,0.687]
[1744576179250,2.15655739,584.31,584.15,0.687]
[1744576179450,2.15655739,584.3,584.15,0.687]
[1744576179652,2.15655739,584.29,584.15,0.687]
[1744576179948,2.15673473,584.28,584.15,0.687]
[1744576180151,2.15673473,584.27,584.15,0.687]
[1744576180354,2.15673473,584.26,584.15,0.687]
[1744576180652,2.15673473,584.25,584.15,0.687]
[1744576180847,2.15673473,584.24,584.15,0.687]
[1744576181147,2.15673473,584.23,584.15,0.687]
[1744576181350,2.15673473,584.22,584.15,0.687]
[1744576181649,2.15814815,584.21,584.15,0.687]
[1744576181848,2.15814815,584.2,584.15,0.687]
[1744576182047,2.15814815,584.19,584.15,0.687]
[1744576182252,2.15814815,584.18,584.15,0.687]
[1744576182447,2.15814815,584.17,584.15,0.687]
[1744576182654,2.15814815,584.16,584.15,0.687]
[1744576182953,1.51148594,584.16,584.15,0.687]
[1744576183253,2.15853144,584.16,584.15,0.687]
[1744576183454,2.15854042,584.16,584.15,0.687]
[1744576185156,2.15916895,584.16,584.15,0.687]
[1744576188452,0.64705448,584.16,584.15,0.687]
[1744576188650,2.15953353,584.16,584.15,0.687]
[1744576189256,2.15983246,584.16,584.15,0.687]
[1744576190058,2.15999902,584.16,584.15,0.687]
[1744576190757,0.215,584.57,584.15,0.687]
[1744576191055,2.16020149,584.56,584.15,0.687]
[1744576191254,2.16020149,584.55,584.15,0.687]
[1744576191453,2.16020149,584.54,584.15,0.687]
[1744576191652,0.64748574,584.53,584.15,0.687]